[Event "11th LCC FIDE Open 2019"]
[Site "London"]
[Date "2019.11.30"]
[Round "2.2"]
[White "Moussard, Jules"]
[Black "Akots, Gabor"]
[Result "1-0"]
[ECO "C96"]
[WhiteElo "2600"]
[BlackElo "2221"]
[Annotator "ChessBase"]
[PlyCount "119"]
[EventDate "2019.11.29"]
[EventType "swiss"]
[EventCountry "ENG"]
[SourceTitle "playchess.com"]
[Source "ChessBase"]
[SourceQuality "1"]
[TimeControl "40/5400+30:1800+30"]

1. e4 {[%emt 0:10:28]} e5 {[%emt 0:00:00]} 2. Nf3 {[%emt 0:00:13]} Nc6 {[%emt 0:00:19]} 3. Bb5 {[%emt 0:01:18]} a6 {[%emt 0:00:17]} 4. Ba4 {[%emt 0:00:05]} Nf6 {[%emt 0:00:21]} 5. O-O {[%emt 0:00:17]} Be7 {[%emt 0:00:40]} 6. Re1 {[%emt 0:00:56]} b5 {[%emt 0:00:31]} 7. Bb3 {[%emt 0:00:05]} d6 {[%emt 0:00:21]} 8. c3 {[%emt 0:00:06]} O-O {[%emt 0:00:13]} 9. h3 {[%emt 0:00:03]} Na5 {[%emt 0:00:08]} 10. Bc2 {[%emt 0:00:04]} c5 {[%emt 0:00:08]} 11. d4 {[%emt 0:00:45]} Nd7 {[%emt 0:00:24]} 12. Nbd2 {[%emt 0:01:39]} exd4 {[%emt 0:00:20]} 13. cxd4 {[%emt 0:00:06]} Re8 {[%emt 0:00:05]} 14. d5 {[%emt 0:10:33]} Bf6 {[%emt 0:01:18]} 15. Rb1 {[%emt 0:01:26]} c4 {[%emt 0:32:20]} 16. b3 {[%emt 0:07:34]} c3 {[%emt 0:00:14]} 17. Nf1 {[%emt 0:01:52]} b4 {[%emt 0:05:34]} 18. a3 {[%emt 0:00:30]} bxa3 {[%emt 0:00:30]} 19. Bxa3 {[%emt 0:02:01]} Qb6 {[%emt 0:00:08]} 20. Qd3 {[%emt 0:04:58]} Ne5 {[%emt 0:15:54]} 21. Qxc3 {[%emt 0:03:23]} Bd7 {[%emt 0:02:50]} 22. Nxe5 {[%emt 0:04:48]} Bxe5 {[%emt 0:00:07]} 23. Qb4 {[%emt 0:02:41]} Rab8 {[%emt 0:00:25]} 24. Qxb6 {[%emt 0:01:01]} Rxb6 {[%emt 0:00:05]} 25. Ne3 {[%emt 0:02:26]} Bb5 {[%emt 0:04:03]} 26. Red1 {[%emt 0:10:40]} Rc8 {[%emt 0:05:49]} 27. g3 {[%emt 0:00:50]} g6 {[%emt 0:00:42]} 28. Bb4 {[%emt 0:06:45]} Nb7 {[%emt 0:01:24]} 29. Be1 {[%emt 0:00:57]} Bc3 {[%emt 0:03:32]} 30. Bxc3 {[%emt 0:02:17]} Rxc3 {[%emt 0:00:11]} 31. b4 {[%emt 0:00:34]} Be2 {[%emt 0:04:04]} 32. Rd4 {[%emt 0:04:36]} a5 {[%emt 0:03:29]} 33. Kg2 {[%emt 0:00:33]} Kg7 {[%emt 0:00:50]} 34. Rd2 {[%emt 0:08:40]} Ba6 {[%emt 0:00:34]} 35. bxa5 {[%emt 0:01:01]} Rxb1 {[%emt 0:00:08]} 36. Bxb1 {[%emt 0:00:03]} Nxa5 {[%emt 0:00:06]} 37. Ra2 {[%emt 0:00:20]} Rc5 {[%emt 0:00:06]} 38. Rb2 {[%emt 0:02:30]} Rb5 {[%emt 0:02:01]} 39. Rxb5 {[%emt 0:00:30]} Bxb5 {[%emt 0:00:03]} 40. Ba2 {[%emt 0:00:56]} Bd3 {[%emt 0:01:22]} 41. f3 {[%emt 0:30:20]} Kf6 {[%emt 0:30:13]} 42. Ng4+ {[%emt 0:01:42]} Ke7 {[%emt 0:00:08]} 43. Kf2 {[%emt 0:00:47]} Nb7 {[%emt 0:00:33]} 44. Ke3 {[%emt 0:00:09]} Bf1 {[%emt 0:00:06]} 45. h4 {[%emt 0:00:34]} f6 {[%emt 0:00:06]} 46. f4 {[%emt 0:01:23]} Nc5 {[%emt 0:01:11]} 47. Bb1 {[%emt 0:00:59]} Bg2 {[%emt 0:03:51]} 48. Nh6 {[%emt 0:00:36]} Kf8 {[%emt 0:02:09]} 49. g4 {[%emt 0:01:07]} Kg7 {[%emt 0:04:14]} 50. g5 {[%emt 0:00:22]} Bh3 {[%emt 0:00:03]} 51. Bc2 {[%emt 0:00:09]} Nb7 {[%emt 0:00:46]} 52. Kd4 {[%emt 0:00:20]} Bd7 {[%emt 0:01:03]} 53. Bd1 {[%emt 0:01:29]} Bh3 {[%emt 0:00:29]} 54. Bg4 {[%emt 0:02:18]} Bxg4 {[%emt 0:00:17]} 55. Nxg4 {[%emt 0:00:03]} f5 {[%emt 0:01:09]} 56. exf5 {[%emt 0:00:23]} gxf5 {[%emt 0:00:04]} 57. Nf6 {[%emt 0:00:26]} h6 {[%emt 0:00:36]} 58. h5 {[%emt 0:00:25]} Kf7 {[%emt 0:01:47]} 59. Nd7 {[%emt 0:01:23]} Kg7 {[%emt 0:00:39]} 60. g6 {[%emt 0:00:21]} 1-0

[Event "11th LCC FIDE Open 2019"]
[Site "London"]
[Date "2019.11.30"]
[Round "2.3"]
[White "Brozel, Sacha"]
[Black "Praggnanandhaa, R."]
[Result "0-1"]
[ECO "A30"]
[WhiteElo "2188"]
[BlackElo "2586"]
[Annotator "ChessBase"]
[PlyCount "57"]
[EventDate "2019.11.29"]
[EventType "swiss"]
[EventCountry "ENG"]
[SourceTitle "playchess.com"]
[Source "ChessBase"]
[SourceQuality "1"]
[TimeControl "40/5400+30:1800+30"]

1. Nf3 {[%emt 0:09:00]} Nf6 {[%emt 0:00:12]} 2. g3 {[%emt 0:00:16]} b6 {[%emt 0:02:08]} 3. Bg2 {[%emt 0:01:30]} Bb7 {[%emt 0:00:07]} 4. c4 {[%emt 0:03:18]} c5 {[%emt 0:02:12]} 5. O-O {[%emt 0:01:41]} g6 {[%emt 0:00:18]} 6. b3 {[%emt 0:08:37]} Bg7 {[%emt 0:00:27]} 7. Bb2 {[%emt 0:00:05]} O-O {[%emt 0:00:17]} 8. d4 {[%emt 0:02:08]} e6 {[%emt 0:04:43]} 9. Nc3 {[%emt 0:06:50]} Na6 {[%emt 0:05:56]} 10. e3 {[%emt 0:15:05]} Qe7 {[%emt 0:02:37]} 11. Qe2 {[%emt 0:01:55]} d5 {[%emt 0:02:20]} 12. cxd5 {[%emt 0:04:09]} exd5 {[%emt 0:00:35]} 13. Rfd1 {[%emt 0:01:40]} Nc7 {[%emt 0:08:35]} 14. Rac1 {[%emt 0:01:32]} Ne6 {[%emt 0:05:40]} 15. Na4 {[%emt 0:06:40]} Rac8 {[%emt 0:04:49]} 16. Ba3 {[%emt 0:00:28]} Rfd8 {[%emt 0:06:22]} 17. Rc2 {[%emt 0:00:34]} Bc6 {[%emt 0:06:43]} 18. Qa6 {[%emt 0:12:24]} Qe8 {[%emt 0:04:46]} 19. Nc3 {[%emt 0:12:04]} Ne4 {[%emt 0:03:17]} 20. Qd3 {[%emt 0:07:37]} a5 {[%emt 0:15:23]} 21. Bb2 {[%emt 0:01:44]} b5 {[%emt 0:01:58]} 22. Bf1 {[%emt 0:00:50]} c4 {[%emt 0:07:35]} 23. bxc4 {[%emt 0:00:05]} dxc4 {[%emt 0:00:18]} 24. Qe2 {[%emt 0:00:20]} b4 {[%emt 0:01:14]} 25. d5 {[%emt 0:00:55]} bxc3 {[%emt 0:00:32]} 26. dxe6 {[%emt 0:00:07]} cxb2 {[%emt 0:00:32]} 27. exf7+ {[%emt 0:00:18]} Qxf7 {[%emt 0:00:10]} 28. Rxc4 {[%emt 0:00:27]} Rxd1 {[%emt 0:01:39]} 29. Qxd1 {[%emt 0:00:05]} 0-1

[Event "11th LCC FIDE Open 2019"]
[Site "London"]
[Date "2019.11.30"]
[Round "2.4"]
[White "Smirnov, Anton"]
[Black "Dong, Bao Nghia"]
[Result "1-0"]
[ECO "C10"]
[WhiteElo "2573"]
[BlackElo "2217"]
[Annotator "ChessBase"]
[PlyCount "79"]
[EventDate "2019.11.29"]
[EventType "swiss"]
[EventCountry "ENG"]
[SourceTitle "playchess.com"]
[Source "ChessBase"]
[SourceQuality "1"]
[TimeControl "40/5400+30:1800+30"]

1. e4 {[%emt 0:53:40]} e6 {[%emt 0:31:26]} 2. d4 {[%emt 0:00:00]} d5 {[%emt 0:00:05]} 3. Nc3 {[%emt 0:00:00]} dxe4 {[%emt 0:00:04]} 4. Nxe4 {[%emt 0:00:00]} Bd7 {[%emt 0:00:03]} 5. Nf3 {[%emt 0:00:00]} Bc6 {[%emt 0:00:08]} 6. Bd3 {[%emt 0:00:00]} Nd7 {[%emt 0:00:04]} 7. c3 {[%emt 0:00:00]} h6 {[%emt 0:01:44]} 8. Bf4 {[%emt 0:00:00]} Ngf6 {[%emt 0:00:15]} 9. Nxf6+ {[%emt 0:00:00]} Nxf6 {[%emt 0:00:42]} 10. Ne5 {[%emt 0:00:00]} Bxg2 {[%emt 0:05:33]} 11. Rg1 {[%emt 0:00:00]} Be4 {[%emt 0:00:07]} 12. Bxe4 {[%emt 0:00:00]} Nxe4 {[%emt 0:00:20]} 13. Qf3 {[%emt 0:00:00]} Nd6 {[%emt 0:01:38]} 14. c4 {[%emt 0:00:00]} g5 {[%emt 0:01:48]} 15. Bg3 {[%emt 0:00:00]} Bg7 {[%emt 0:01:44]} 16. O-O-O {[%emt 0:00:00]} Qf6 {[%emt 0:01:02]} 17. Qb3 {[%emt 0:00:54]} Rd8 {[%emt 0:09:28]} 18. c5 {[%emt 0:01:22]} Nf5 {[%emt 0:00:19]} 19. Qb5+ {[%emt 0:02:01]} c6 {[%emt 0:01:35]} 20. Qxb7 {[%emt 0:00:12]} O-O {[%emt 0:00:33]} 21. Nxc6 {[%emt 0:00:31]} Nxd4 {[%emt 0:00:28]} 22. Nxd8 {[%emt 0:09:44]} Rxd8 {[%emt 0:02:10]} 23. Rd2 {[%emt 0:01:26]} Rd5 {[%emt 0:00:25]} 24. Qb4 {[%emt 0:05:53]} Qf5 {[%emt 0:03:52]} 25. Bd6 {[%emt 0:00:40]} Be5 {[%emt 0:03:17]} 26. Qc4 {[%emt 0:06:12]} Bxd6 {[%emt 0:22:06]} 27. cxd6 {[%emt 0:00:07]} Qf4 {[%emt 0:00:05]} 28. Rgd1 {[%emt 0:00:29]} Rxd6 {[%emt 0:00:10]} 29. Kb1 {[%emt 0:00:24]} e5 {[%emt 0:04:26]} 30. a3 {[%emt 0:01:00]} Qxh2 {[%emt 0:01:12]} 31. Qc7 {[%emt 0:01:10]} Rd5 {[%emt 0:01:03]} 32. Qxa7 {[%emt 0:00:34]} Qg2 {[%emt 0:00:49]} 33. Qa8+ {[%emt 0:01:38]} Kg7 {[%emt 0:00:06]} 34. Ka2 {[%emt 0:00:04]} Qe4 {[%emt 0:01:36]} 35. Rd3 {[%emt 0:00:58]} g4 {[%emt 0:02:44]} 36. Re3 {[%emt 0:00:16]} Qc2 {[%emt 0:03:59]} 37. Qxd5 {[%emt 0:00:03]} Qxd1 {[%emt 0:00:03]} 38. Rxe5 {[%emt 0:00:52]} Qd2 {[%emt 0:01:17]} 39. Re4 {[%emt 0:00:09]} Qxf2 {[%emt 0:00:32]} 40. Rxg4+ {[%emt 0:00:10]} 1-0

[Event "11th LCC FIDE Open 2019"]
[Site "London"]
[Date "2019.11.30"]
[Round "2.5"]
[White "Abrahams, Daniel"]
[Black "Fodor, Tamas Jr"]
[Result "0-1"]
[ECO "A11"]
[WhiteElo "2185"]
[BlackElo "2533"]
[Annotator "ChessBase"]
[PlyCount "88"]
[EventDate "2019.11.29"]
[EventType "swiss"]
[EventCountry "ENG"]
[SourceTitle "playchess.com"]
[Source "ChessBase"]
[SourceQuality "1"]
[TimeControl "40/5400+30:1800+30"]

1. Nf3 {[%emt 0:00:00]} d5 {[%emt 0:00:11]} 2. g3 {[%emt 0:00:04]} c6 {[%emt 0:00:53]} 3. Bg2 {[%emt 0:00:29]} Bg4 {[%emt 0:00:57]} 4. c4 {[%emt 0:02:15]} e6 {[%emt 0:00:13]} 5. d3 {[%emt 0:01:19]} Bxf3 {[%emt 0:03:09]} 6. Bxf3 {[%emt 0:00:13]} dxc4 {[%emt 0:00:09]} 7. dxc4 {[%emt 0:00:11]} Qxd1+ {[%emt 0:00:06]} 8. Kxd1 {[%emt 0:00:04]} Nd7 {[%emt 0:00:08]} 9. e3 {[%emt 0:08:40]} O-O-O {[%emt 0:03:17]} 10. Ke2 {[%emt 0:01:32]} h5 {[%emt 0:07:18]} 11. h4 {[%emt 0:02:23]} Ngf6 {[%emt 0:04:10]} 12. b3 {[%emt 0:05:57]} Ne5 {[%emt 0:04:48]} 13. Bb2 {[%emt 0:00:51]} Nxf3 {[%emt 0:00:09]} 14. Bxf6 {[%emt 0:01:19]} gxf6 {[%emt 0:01:10]} 15. Kxf3 {[%emt 0:00:05]} f5 {[%emt 0:00:13]} 16. a3 {[%emt 0:05:43]} Rd3 {[%emt 0:04:00]} 17. b4 {[%emt 0:00:07]} Bg7 {[%emt 0:06:21]} 18. Ra2 {[%emt 0:00:07]} Rhd8 {[%emt 0:00:04]} 19. Ke2 {[%emt 0:03:51]} b6 {[%emt 0:13:08]} 20. Rc1 {[%emt 0:04:10]} a5 {[%emt 0:14:49]} 21. c5 {[%emt 0:15:58]} b5 {[%emt 0:01:16]} 22. a4 {[%emt 0:04:13]} axb4 {[%emt 0:05:56]} 23. axb5 {[%emt 0:00:06]} cxb5 {[%emt 0:00:20]} 24. c6 {[%emt 0:09:19]} Bc3 {[%emt 0:00:29]} 25. Ra5 {[%emt 0:00:10]} R8d5 {[%emt 0:02:17]} 26. Rxb5 {[%emt 0:04:34]} Rxb5 {[%emt 0:03:46]} 27. Kxd3 {[%emt 0:00:07]} Bb2 {[%emt 0:00:04]} 28. Rc2 {[%emt 0:02:20]} Be5 {[%emt 0:02:31]} 29. Nd2 {[%emt 0:03:06]} b3 {[%emt 0:00:54]} 30. Rc1 {[%emt 0:00:02]} Rd5+ {[%emt 0:01:52]} 31. Ke2 {[%emt 0:00:09]} b2 {[%emt 0:00:06]} 32. Rb1 {[%emt 0:00:39]} Rc5 {[%emt 0:00:07]} 33. Kd1 {[%emt 0:07:39]} Kc7 {[%emt 0:01:58]} 34. Nf3 {[%emt 0:00:13]} Bf6 {[%emt 0:01:07]} 35. Nd4 {[%emt 0:04:11]} Bxd4 {[%emt 0:00:26]} 36. exd4 {[%emt 0:00:06]} Rb5 {[%emt 0:00:05]} 37. Kc2 {[%emt 0:00:08]} Kxc6 {[%emt 0:00:48]} 38. Rxb2 {[%emt 0:00:11]} Rxb2+ {[%emt 0:00:05]} 39. Kxb2 {[%emt 0:00:06]} Kd5 {[%emt 0:00:06]} 40. Kc3 {[%emt 0:00:12]} Ke4 {[%emt 0:00:05]} 41. Kd2 {[%emt 0:31:04]} Kf3 {[%emt 0:30:18]} 42. Ke1 {[%emt 0:00:05]} f4 {[%emt 0:00:05]} 43. gxf4 {[%emt 0:00:16]} Kxf4 {[%emt 0:00:05]} 44. Ke2 {[%emt 0:00:09] Ke5} Ke4 {[%emt 0:00:05]} 0-1

[Event "11th LCC FIDE Open 2019"]
[Site "London"]
[Date "2019.11.30"]
[Round "2.6"]
[White "Grover, Sahaj"]
[Black "Rocco, Federico"]
[Result "1-0"]
[ECO "B23"]
[WhiteElo "2508"]
[BlackElo "2207"]
[Annotator "ChessBase"]
[PlyCount "107"]
[EventDate "2019.11.29"]
[EventType "swiss"]
[EventCountry "ENG"]
[SourceTitle "playchess.com"]
[Source "ChessBase"]
[SourceQuality "1"]
[TimeControl "40/5400+30:1800+30"]

1. e4 {[%emt 0:00:00]} c5 {[%emt 0:00:00]} 2. Nc3 {[%emt 0:00:01]} d6 {[%emt 0:00:02]} 3. d4 {[%emt 0:06:57]} cxd4 {[%emt 0:01:12]} 4. Qxd4 {[%emt 0:00:07]} a6 {[%emt 0:05:46]} 5. b3 {[%emt 0:00:24]} Nf6 {[%emt 0:01:01]} 6. Bb2 {[%emt 0:00:23]} e5 {[%emt 0:04:59]} 7. Qd2 {[%emt 0:00:44]} Be7 {[%emt 0:01:34]} 8. O-O-O {[%emt 0:03:10]} O-O {[%emt 0:01:58]} 9. f4 {[%emt 0:00:08]} Nbd7 {[%emt 0:04:06]} 10. Nf3 {[%emt 0:02:11]} Qc7 {[%emt 0:05:39]} 11. g4 {[%emt 0:46:00]} Nc5 {[%emt 0:17:31]} 12. g5 {[%emt 0:00:10]} Nfxe4 {[%emt 0:02:56]} 13. Nxe4 {[%emt 0:01:30]} Nxe4 {[%emt 0:00:08]} 14. Qe3 {[%emt 0:00:05]} Nc5 {[%emt 0:08:34]} 15. fxe5 {[%emt 0:00:11]} Bf5 {[%emt 0:02:00]} 16. Bc4 {[%emt 0:06:32]} Rac8 {[%emt 0:07:33]} 17. Qf4 {[%emt 0:02:20]} Be4 {[%emt 0:02:12]} 18. exd6 {[%emt 0:02:25]} Bxd6 {[%emt 0:02:26]} 19. Rxd6 {[%emt 0:01:01]} Bxf3 {[%emt 0:02:03]} 20. Rf1 {[%emt 0:03:34]} Ne6 {[%emt 0:05:09]} 21. Qe5 {[%emt 0:02:00]} Bg4 {[%emt 0:01:59]} 22. h3 {[%emt 0:00:51]} b5 {[%emt 0:01:50]} 23. Rf4 {[%emt 0:12:23]} bxc4 {[%emt 0:09:29]} 24. Rxc4 {[%emt 0:00:04]} Qb7 {[%emt 0:01:09]} 25. Rxg4 {[%emt 0:00:32]} Qh1+ {[%emt 0:00:14]} 26. Rd1 {[%emt 0:02:02]} Qxh3 {[%emt 0:00:17]} 27. Qe4 {[%emt 0:01:51]} Qh5 {[%emt 0:06:06]} 28. Rh1 {[%emt 0:02:38]} Qg6 {[%emt 0:00:04]} 29. Qxg6 {[%emt 0:00:04]} fxg6 {[%emt 0:00:13]} 30. Re1 {[%emt 0:01:53]} Rf2 {[%emt 0:00:22]} 31. c4 {[%emt 0:00:36]} Nf4 {[%emt 0:01:26]} 32. Rd1 {[%emt 0:00:39]} Re8 {[%emt 0:01:12]} 33. Rd2 {[%emt 0:00:59]} Re1+ {[%emt 0:03:34]} 34. Kc2 {[%emt 0:00:04]} Rxd2+ {[%emt 0:00:28]} 35. Kxd2 {[%emt 0:00:03]} Re2+ {[%emt 0:00:06]} 36. Kd1 {[%emt 0:01:42]} Rf2 {[%emt 0:00:46]} 37. Bd4 {[%emt 0:00:23]} Rf1+ {[%emt 0:00:59]} 38. Kd2 {[%emt 0:00:02]} Kf7 {[%emt 0:00:45]} 39. Be3 {[%emt 0:00:21]} Ne6 {[%emt 0:00:23]} 40. Rh4 {[%emt 0:00:20]} Ra1 {[%emt 0:00:49]} 41. a4 {[%emt 0:30:19]} Ra2+ {[%emt 0:02:07]} 42. Kc3 {[%emt 0:00:00]} Re2 {[%emt 0:00:08]} 43. Rh3 {[%emt 0:00:00]} h5 {[%emt 0:01:20]} 44. b4 {[%emt 0:00:00]} Rg2 {[%emt 0:01:14]} 45. b5 {[%emt 0:00:00]} axb5 {[%emt 0:00:57]} 46. cxb5 {[%emt 0:00:00]} Ke7 {[%emt 0:00:59]} 47. a5 {[%emt 0:00:00]} Nxg5 {[%emt 0:00:21]} 48. Bxg5+ {[%emt 0:00:00]} Rxg5 {[%emt 0:00:12]} 49. Kb4 {[%emt 0:00:00]} Kd6 {[%emt 0:02:02]} 50. a6 {[%emt 0:00:00]} Kc7 {[%emt 0:00:36]} 51. Rc3+ {[%emt 0:00:00]} Kb8 {[%emt 0:01:50]} 52. b6 {[%emt 0:00:00]} Rf5 {[%emt 0:03:36]} 53. a7+ {[%emt 0:00:00]} Kb7 {[%emt 0:00:07]} 54. Rc8 {[%emt 0:00:00]} 1-0

[Event "11th LCC FIDE Open 2019"]
[Site "London"]
[Date "2019.11.30"]
[Round "2.7"]
[White "Ogunshola, Olugbemiga (Ben)"]
[Black "Gordon, Stephen J"]
[Result "0-1"]
[ECO "A13"]
[WhiteElo "2169"]
[BlackElo "2505"]
[Annotator "ChessBase"]
[PlyCount "92"]
[EventDate "2019.11.29"]
[EventType "swiss"]
[EventCountry "ENG"]
[SourceTitle "playchess.com"]
[Source "ChessBase"]
[SourceQuality "1"]
[TimeControl "40/5400+30:1800+30"]

1. c4 {[%emt 0:07:20]} e6 {[%emt 0:00:00]} 2. Nf3 {[%emt 0:00:17]} d5 {[%emt 0:00:01]} 3. g3 {[%emt 0:00:47]} dxc4 {[%emt 0:01:58]} 4. Qa4+ {[%emt 0:01:00]} Nd7 {[%emt 0:00:40]} 5. Bg2 {[%emt 0:00:25]} a6 {[%emt 0:00:55]} 6. Qxc4 {[%emt 0:00:09]} b5 {[%emt 0:01:41]} 7. Qc2 {[%emt 0:00:07]} Bb7 {[%emt 0:00:09]} 8. O-O {[%emt 0:04:35]} Ngf6 {[%emt 0:02:07]} 9. d3 {[%emt 0:04:42]} c5 {[%emt 0:00:53]} 10. a4 {[%emt 0:04:01]} Be7 {[%emt 0:03:34]} 11. Nc3 {[%emt 0:04:41]} Qb6 {[%emt 0:02:00]} 12. Qb3 {[%emt 0:01:59]} b4 {[%emt 0:16:35]} 13. a5 {[%emt 0:06:38]} Qc7 {[%emt 0:07:26]} 14. Nb1 {[%emt 0:05:35]} Bd5 {[%emt 0:11:16]} 15. Qc2 {[%emt 0:00:26]} c4 {[%emt 0:08:21]} 16. Bg5 {[%emt 0:10:49]} Rc8 {[%emt 0:02:24]} 17. Rc1 {[%emt 0:01:25]} Qb8 {[%emt 0:06:09]} 18. Nfd2 {[%emt 0:06:27]} Bxg2 {[%emt 0:03:47]} 19. Kxg2 {[%emt 0:00:11]} Rc5 {[%emt 0:01:28]} 20. Nf3 {[%emt 0:04:59]} Qb7 {[%emt 0:03:59]} 21. Kg1 {[%emt 0:02:01]} cxd3 {[%emt 0:03:46]} 22. Qxd3 {[%emt 0:00:03]} h6 {[%emt 0:03:26]} 23. Be3 {[%emt 0:01:40]} Rxc1+ {[%emt 0:00:15]} 24. Bxc1 {[%emt 0:00:02]} Nc5 {[%emt 0:01:22]} 25. Qc4 {[%emt 0:01:04]} O-O {[%emt 0:01:48]} 26. Be3 {[%emt 0:01:15]} Rc8 {[%emt 0:02:31]} 27. Nbd2 {[%emt 0:01:11]} Nce4 {[%emt 0:05:15]} 28. Qd3 {[%emt 0:02:57]} Rd8 {[%emt 0:01:11]} 29. Bd4 {[%emt 0:01:37]} Nxd2 {[%emt 0:04:52]} 30. Qxd2 {[%emt 0:00:05]} Qb5 {[%emt 0:00:45]} 31. Qc2 {[%emt 0:07:51]} b3 {[%emt 0:00:41]} 32. Qd3 {[%emt 0:02:02]} Qxd3 {[%emt 0:00:54]} 33. exd3 {[%emt 0:00:02]} g5 {[%emt 0:00:55]} 34. Ra4 {[%emt 0:01:54]} Nd5 {[%emt 0:00:54]} 35. Rc4 {[%emt 0:02:49]} Nb4 {[%emt 0:01:16]} 36. Nd2 {[%emt 0:01:56]} Nxd3 {[%emt 0:01:10]} 37. Nxb3 {[%emt 0:00:08]} Rb8 {[%emt 0:00:49]} 38. Bb6 {[%emt 0:05:41]} Nxb2 {[%emt 0:00:18]} 39. Rd4 {[%emt 0:03:44]} Bf6 {[%emt 0:01:07]} 40. Re4 {[%emt 0:02:17]} Nd3 {[%emt 0:00:41]} 41. Kf1 {[%emt 0:04:27]} Rc8 {[%emt 0:10:51]} 42. Re3 {[%emt 0:15:57]} Nb4 {[%emt 0:04:49]} 43. Rf3 {[%emt 0:07:03]} Nd5 {[%emt 0:01:20]} 44. Nd2 {[%emt 0:02:42]} Rc2 {[%emt 0:01:26]} 45. Ne4 {[%emt 0:00:14]} Be7 {[%emt 0:00:09]} 46. Rb3 {[%emt 0:00:28]} f5 {[%emt 0:00:24]} 0-1

[Event "11th LCC FIDE Open 2019"]
[Site "London"]
[Date "2019.11.30"]
[Round "2.8"]
[White "Petrov, Martin"]
[Black "Hill, Alistair"]
[Result "1-0"]
[ECO "C03"]
[WhiteElo "2497"]
[BlackElo "2193"]
[Annotator "ChessBase"]
[PlyCount "91"]
[EventDate "2019.11.29"]
[EventType "swiss"]
[EventCountry "ENG"]
[SourceTitle "playchess.com"]
[Source "ChessBase"]
[SourceQuality "1"]
[TimeControl "40/5400+30:1800+30"]

1. e4 {[%emt 0:00:00]} e6 {[%emt 0:04:11]} 2. d4 {[%emt 0:01:15]} d5 {[%emt 0:00:04]} 3. Nd2 {[%emt 0:00:21]} Be7 {[%emt 0:00:05]} 4. e5 {[%emt 0:00:23]} c5 {[%emt 0:00:05]} 5. c3 {[%emt 0:00:06]} cxd4 {[%emt 0:00:45]} 6. cxd4 {[%emt 0:00:06]} Qb6 {[%emt 0:00:03]} 7. Ndf3 {[%emt 0:00:14]} Bb4+ {[%emt 0:00:26]} 8. Bd2 {[%emt 0:00:07]} Nc6 {[%emt 0:00:03]} 9. Rc1 {[%emt 0:00:26]} Bd7 {[%emt 0:02:55]} 10. Bxb4 {[%emt 0:00:09]} Qxb4+ {[%emt 0:01:42]} 11. Qd2 {[%emt 0:00:05]} Qxd2+ {[%emt 0:06:54]} 12. Kxd2 {[%emt 0:00:52]} f6 {[%emt 0:01:40]} 13. Bd3 {[%emt 0:09:10]} Nh6 {[%emt 0:00:24]} 14. Ne2 {[%emt 0:09:54]} O-O {[%emt 0:01:14]} 15. exf6 {[%emt 0:03:12]} Rxf6 {[%emt 0:08:19]} 16. Bb5 {[%emt 0:14:29]} Nf7 {[%emt 0:04:57]} 17. Ke3 {[%emt 0:07:49]} e5 {[%emt 0:20:23]} 18. Bxc6 {[%emt 0:19:37]} exd4+ {[%emt 0:00:07]} 19. Nexd4 {[%emt 0:00:33]} bxc6 {[%emt 0:00:03]} 20. Rhe1 {[%emt 0:01:42]} Nd6 {[%emt 0:13:14]} 21. Ne5 {[%emt 0:01:50]} Re8 {[%emt 0:00:02]} 22. Kd3 {[%emt 0:00:17]} Bf5+ {[%emt 0:00:02]} 23. Nxf5 {[%emt 0:00:11]} Rxf5 {[%emt 0:00:19]} 24. Nxc6 {[%emt 0:01:27]} Rxe1 {[%emt 0:07:08]} 25. Rxe1 {[%emt 0:00:06]} Rxf2 {[%emt 0:00:04]} 26. Re2 {[%emt 0:00:13]} Rxe2 {[%emt 0:02:38]} 27. Kxe2 {[%emt 0:00:05]} Nc8 {[%emt 0:00:02]} 28. Kd3 {[%emt 0:03:48]} Kf7 {[%emt 0:00:02]} 29. Kd4 {[%emt 0:00:10]} Ke6 {[%emt 0:00:02]} 30. Kc5 {[%emt 0:00:31]} h5 {[%emt 0:04:19]} 31. b4 {[%emt 0:01:42]} h4 {[%emt 0:02:50]} 32. b5 {[%emt 0:01:40]} g5 {[%emt 0:06:50]} 33. Nxa7 {[%emt 0:02:13]} d4 {[%emt 0:00:07]} 34. b6 {[%emt 0:03:03]} Nxb6 {[%emt 0:01:07]} 35. Kxb6 {[%emt 0:01:02]} d3 {[%emt 0:00:02]} 36. Nb5 {[%emt 0:00:06]} Kd5 {[%emt 0:00:05]} 37. Nc3+ {[%emt 0:00:30]} Kc4 {[%emt 0:00:14]} 38. Nd1 {[%emt 0:01:47]} g4 {[%emt 0:02:29]} 39. a4 {[%emt 0:01:57]} g3 {[%emt 0:00:07]} 40. hxg3 {[%emt 0:00:06]} hxg3 {[%emt 0:00:04]} 41. a5 {[%emt 0:30:31]} d2 {[%emt 0:30:03]} 42. a6 {[%emt 0:00:18]} Kd3 {[%emt 0:00:04]} 43. a7 {[%emt 0:00:24]} Kc2 {[%emt 0:00:05]} 44. Ne3+ {[%emt 0:00:14]} Kd3 {[%emt 0:00:05]} 45. a8=Q {[%emt 0:00:22]} Kxe3 {[%emt 0:00:05]} 46. Qf3+ {[%emt 0:00:06]} 1-0

[Event "11th LCC FIDE Open 2019"]
[Site "London"]
[Date "2019.11.30"]
[Round "2.9"]
[White "Pasztor, Balazs"]
[Black "Gormally, Daniel W"]
[Result "0-1"]
[ECO "B56"]
[WhiteElo "2166"]
[BlackElo "2491"]
[Annotator "ChessBase"]
[PlyCount "62"]
[EventDate "2019.11.29"]
[EventType "swiss"]
[EventCountry "ENG"]
[SourceTitle "playchess.com"]
[Source "ChessBase"]
[SourceQuality "1"]
[TimeControl "40/5400+30:1800+30"]

1. e4 {[%emt 0:00:00]} c5 {[%emt 0:00:00]} 2. Nf3 {[%emt 0:00:01]} d6 {[%emt 0:00:00]} 3. d4 {[%emt 0:00:09]} cxd4 {[%emt 0:00:00]} 4. Nxd4 {[%emt 0:00:17]} Nf6 {[%emt 0:00:00]} 5. Nc3 {[%emt 0:00:15]} a6 {[%emt 0:00:02]} 6. Nb3 {[%emt 0:00:50]} Nc6 {[%emt 0:01:57]} 7. Be3 {[%emt 0:00:59]} e6 {[%emt 0:03:10]} 8. g4 {[%emt 0:02:13]} h6 {[%emt 0:02:02]} 9. Qe2 {[%emt 0:04:58]} Qc7 {[%emt 0:03:42]} 10. O-O-O {[%emt 0:06:02]} b5 {[%emt 0:00:07]} 11. Bg2 {[%emt 0:06:23]} Bb7 {[%emt 0:02:34]} 12. f4 {[%emt 0:03:42]} g6 {[%emt 0:12:37]} 13. Rhf1 {[%emt 0:06:07]} Be7 {[%emt 0:07:15]} 14. h3 {[%emt 0:03:45]} Nd7 {[%emt 0:04:53]} 15. Kb1 {[%emt 0:06:57]} b4 {[%emt 0:05:05]} 16. Na4 {[%emt 0:15:00]} a5 {[%emt 0:00:20]} 17. Qf2 {[%emt 0:02:44]} Ba6 {[%emt 0:04:40]} 18. Nb6 {[%emt 0:04:07]} Nxb6 {[%emt 0:01:50]} 19. Bxb6 {[%emt 0:00:35]} Qb7 {[%emt 0:03:45]} 20. Rfe1 {[%emt 0:08:35]} a4 {[%emt 0:00:08]} 21. Nc1 {[%emt 0:01:33]} O-O {[%emt 0:03:59]} 22. e5 {[%emt 0:02:48]} d5 {[%emt 0:04:21]} 23. f5 {[%emt 0:02:19]} b3 {[%emt 0:01:31]} 24. cxb3 {[%emt 0:02:42]} axb3 {[%emt 0:01:10]} 25. a3 {[%emt 0:03:42]} Bc4 {[%emt 0:04:30]} 26. f6 {[%emt 0:02:44]} Bb4 {[%emt 0:16:41]} 27. Qh4 {[%emt 0:09:03]} Rfc8 {[%emt 0:03:07]} 28. Be3 {[%emt 0:03:04]} Rxa3 {[%emt 0:04:14]} 29. Bxh6 {[%emt 0:02:15]} Ra1+ {[%emt 0:01:11]} 30. Kxa1 {[%emt 0:00:10]} Qa6+ {[%emt 0:00:22]} 31. Kb1 {[%emt 0:00:09]} Ra8 {[%emt 0:00:05]} 0-1